bitfinex/quotes_SOLUSD_20220129
["timestamp","ask_amount","ask_price","bid_price","bid_amount"]
[1643493734754,62.76,96.279,96.18,1.44128592]
[1643493734951,62.76,96.279,96.172,1.44128592]
[1643493735153,76.07669142,96.279,96.171,1.44128592]
[1643493735353,2.95669142,96.278,96.168,1.44128592]
[1643493735552,2.95669142,96.278,96.158,49.6608]
[1643493735553,64.2527804,96.277,96.162,1.44128592]
[1643493735781,36.78142551,96.249,96.162,1.44128592]
[1643493736061,62.51,96.247,96.153,1.44128592]
[1643493736357,62.51,96.239,96.137,1.44128592]
[1643493736594,62.51,96.237,96.13,1.44128592]
[1643493736755,0.25,96.236,96.128,1.44128592]
[1643493736952,36.61068836,96.229,96.128,1.44128592]
[1643493737360,0.25,96.228,96.131,1.44128592]
[1643493737562,6.0,96.219,96.132,1.44128592]
[1643493737763,23.4035,96.218,96.131,1.44128592]
[1643493737962,15.609,96.21,96.131,1.44128592]
[1643493738162,44.52572023,96.209,96.13,1.44128592]
[1643493738362,44.77572023,96.209,96.122,25.81218592]
[1643493738970,44.77572023,96.209,96.123,1.44128592]
[1643493739572,44.77572023,96.209,96.124,24.9148]
[1643493739868,44.77572023,96.209,96.14,0.25]
[1643493740069,15.606,96.23,96.149,6.0]
[1643493740270,3.0,96.247,96.149,6.0]
[1643493740670,3.0,96.247,96.15,6.0]
[1643493740871,23.7623,96.237,96.15,6.0]
[1643493741070,3.0,96.234,96.15,6.0]
[1643493741373,0.25,96.233,96.15,6.0]
[1643493741573,6.0,96.224,96.139,15.7342]
[1643493741774,0.25,96.223,96.139,15.7342]
[1643493742372,25.0655,96.223,96.139,15.7342]
[1643493742773,25.0655,96.223,96.14,0.25]
[1643493742977,25.0655,96.223,96.149,6.0]
[1643493743175,25.0655,96.223,96.139,15.7342]
[1643493745075,15.609,96.22,96.139,15.7342]
[1643493745391,44.97182276,96.219,96.139,15.7342]
[1643493746584,6.0,96.209,96.139,15.7342]
[1643493746780,0.25,96.208,96.139,15.7342]
[1643493747382,24.5086,96.208,96.139,15.7342]
[1643493748085,3.0,96.205,96.139,15.7342]
[1643493748290,41.49111328,96.204,96.139,15.7342]
[1643493748549,15.04,96.2,96.094,1.44128592]
[1643493748907,62.76,96.199,96.094,1.44128592]
[1643493749105,104.2,96.198,96.091,1.44128592]
[1643493749303,104.2,96.198,96.072,4.65776794]
[1643493749304,62.51,96.195,96.089,1.44128592]
[1643493749505,43.91284724,96.188,96.086,1.44128592]
[1643493749704,62.51,96.187,96.084,1.44128592]
[1643493749903,62.51,96.185,96.084,1.44128592]
[1643493750108,62.51,96.185,96.081,1.44128592]
[1643493750404,0.25,96.184,96.076,1.44128592]
[1643493750645,62.51,96.179,96.071,51.81681741]
[1643493750815,0.25,96.178,96.071,51.81681741]
[1643493751007,35.73185792,96.168,96.071,51.81681741]
[1643493751214,62.51,96.159,96.071,51.81681741]
[1643493751612,3.20669142,96.158,96.071,51.81681741]
[1643493751809,3.20669142,96.158,96.06,15.2892]
[1643493752009,2.95669142,96.157,96.045,1.44128592]
[1643493752209,2.95669142,96.157,96.043,24.7558]
[1643493752410,34.1349512,96.146,96.043,24.7558]
[1643493752609,24.7767,96.145,96.043,24.7558]
[1643493752814,27.98339142,96.145,96.043,24.7558]
[1643493753111,166.71,96.139,96.043,24.7558]
[1643493753311,0.25,96.138,96.043,24.7558]
[1643493754114,0.25,96.138,96.039,51.83408267]
[1643493754115,40.37810663,96.119,96.039,51.83408267]
[1643493754312,0.25,96.118,96.039,51.83408267]
[1643493754717,104.45,96.118,96.039,51.83408267]
[1643493755215,36.24753273,96.099,96.039,51.83408267]
[1643493755614,0.25,96.098,96.039,51.83408267]
[1643493756019,6.0,96.089,96.039,51.83408267]
[1643493756418,6.0,96.089,95.994,24.1535]
[1643493756419,0.25,96.088,95.994,24.1535]
[1643493756722,24.6703,96.088,96.012,6.0]
[1643493757025,24.6703,96.088,95.994,24.1535]
[1643493757618,15.632,96.08,95.994,24.1535]
[1643493757818,41.63735068,96.079,96.004,6.0]
[1643493758219,41.63735068,96.079,95.994,24.1535]
[1643493762126,104.14735068,96.079,95.982,1.44128592]
[1643493762328,104.14735068,96.079,95.973,48.07987507]
[1643493762329,62.51,96.067,95.973,48.07987507]
[1643493762524,62.51,96.067,95.912,76.7689]
[1643493762525,62.51,96.059,95.948,2.84871402]
[1643493762729,62.83216159,96.055,95.914,49.6703]
[1643493763130,0.25,96.054,95.914,49.6703]
[1643493763331,15.04,96.04,95.914,49.6703]
[1643493763534,43.84738902,96.039,95.914,49.6703]
[1643493763734,44.09738902,96.039,95.914,49.6703]
[1643493763937,2.95669142,96.038,95.914,49.6703]
[1643493764130,104.2,96.037,95.903,48.00733636]
[1643493764334,62.51,96.036,95.903,48.00733636]
[1643493764607,0.32019168,96.027,95.903,48.00733636]
[1643493764837,3.0,96.014,95.903,48.00733636]
[1643493765034,15.651,95.99,95.903,48.00733636]
[1643493765231,44.03498593,95.989,95.903,48.00733636]
[1643493765438,44.28498593,95.989,95.903,48.00733636]
[1643493765834,2.95669142,95.988,95.903,48.00733636]
[1643493766233,0.25,95.987,95.903,48.00733636]
[1643493766433,15.65,95.98,95.903,48.00733636]
[1643493766833,0.25,95.979,95.903,48.00733636]
[1643493767036,6.0,95.97,95.903,48.00733636]
[1643493767255,43.81112822,95.969,95.903,48.00733636]
[1643493767453,44.06112822,95.969,95.903,48.00733636]
[1643493769455,44.06112822,95.969,95.913,6.0]
[1643493769662,44.06112822,95.969,95.903,48.00733636]
[1643493770959,43.81112822,95.969,95.903,48.00733636]
[1643493771157,43.81112822,95.969,95.913,6.0]
[1643493771359,23.48125797,95.969,95.914,3.66414597]
[1643493771559,23.48125797,95.969,95.924,6.0]
[1643493771760,15.04,96.02,95.914,5.82062478]
[1643493771958,6.0,95.959,95.914,2.15647881]
[1643493772158,2.95669142,95.998,95.903,48.00733636]
[1643493772357,6.0,95.949,95.903,48.00733636]
[1643493772558,6.0,95.988,95.903,48.00733636]
[1643493772957,46.18424614,95.987,95.904,3.76319839]
[1643493773158,46.43424614,95.987,95.903,48.00733636]
[1643493774360,2.95669142,95.986,95.903,48.00733636]
[1643493774765,0.25,95.985,95.903,48.00733636]
[1643493775168,2.95669142,95.984,95.903,48.00733636]
[1643493775370,0.25,95.983,95.903,48.00733636]
[1643493775869,15.65,95.98,95.903,48.00733636]
[1643493776270,3.20669142,95.979,95.903,48.00733636]
[1643493776673,2.95669142,95.978,95.903,48.00733636]
[1643493776873,0.25,95.977,95.903,48.00733636]
[1643493777073,0.25,95.977,95.903,48.33627545]
[1643493777287,0.25,95.977,95.903,0.32893909]
[1643493778077,0.25,95.986,95.903,0.32893909]
[1643493778576,6.0,95.977,95.903,0.32893909]
[1643493778781,0.25,95.976,95.903,0.32893909]
[1643493779980,6.0,95.977,95.903,0.32893909]
[1643493780579,6.0,95.977,95.887,52.52886117]
[1643493780881,6.0,95.977,95.888,4.29054378]
[1643493781082,6.0,95.977,95.897,6.0]
[1643493781282,0.25,95.976,95.897,6.0]
[1643493781520,0.25,95.976,95.897,3.79509057]
[1643493781683,0.25,95.976,95.897,9.79509057]
[1643493781882,0.25,95.976,95.897,3.79509057]
[1643493782084,6.0,95.977,95.897,3.79509057]
[1643493782287,6.0,95.977,95.9,15.04]
[1643493782485,46.18424614,95.987,95.901,4.29132459]
[1643493782686,46.18424614,95.987,95.911,104.2]
[1643493782886,46.18424614,95.987,95.912,4.29132459]
[1643493783187,46.18424614,95.987,95.922,6.0]
[1643493783388,0.25,95.986,95.923,4.29132459]
[1643493783618,0.25,95.986,95.933,6.0]
[1643493783785,46.18424614,95.987,95.933,6.0]
[1643493784188,46.18424614,95.987,95.921,6.0]
[1643493784694,2.95669142,96.021,95.922,4.30004214]
[1643493784889,15.639,96.04,95.922,4.55004214]
[1643493785087,15.639,96.04,95.932,6.0]
[1643493785288,15.639,96.04,95.933,0.25]
[1643493785489,38.8979352,95.996,95.933,10.55004214]
[1643493785739,38.8979352,95.996,95.933,4.30004214]
[1643493785888,38.8979352,95.996,95.943,6.0]
[1643493786111,15.639,96.04,95.944,6.0]
[1643493786312,0.25,96.039,95.944,4.31234037]
[1643493786511,0.25,96.039,95.954,6.0]
[1643493786713,6.0,96.034,95.954,6.0]
[1643493786921,2.95669142,96.045,95.955,110.2]
[1643493787115,44.88502608,96.066,95.96,6.0]
[1643493787317,44.88502608,96.066,95.97,15.04]
[1643493787518,44.88502608,96.066,95.98,6.0]
[1643493787717,44.88502608,96.066,95.981,4.31182467]
[1643493787916,44.88502608,96.066,95.981,10.56182467]
[1643493788217,44.88502608,96.066,95.99,6.0]
[1643493788417,0.25,96.065,95.99,6.0]
[1643493789518,0.25,96.065,95.991,6.0]
[1643493791518,6.0,96.056,95.991,6.0]
[1643493791716,6.0,96.056,95.98,15.04]
[1643493791917,3.20669142,96.055,95.98,15.04]
[1643493793024,2.95669142,96.054,95.99,6.0]
[1643493793418,0.25,96.053,95.971,6.0]
[1643493793618,0.25,96.053,95.972,4.3190846]
[1643493793819,45.41263206,96.051,95.972,4.3190846]
[1643493794019,45.41263206,96.051,95.971,6.0]
[1643493794218,3.20669142,96.05,95.961,47.1368]
[1643493794719,2.95669142,96.049,95.961,47.1368]
[1643493794921,15.639,96.04,95.961,47.1368]
[1643493795129,6.0,96.039,95.961,47.1368]
[1643493795318,6.25,96.039,95.961,47.1368]
[1643493795919,6.25,96.039,95.93,37.5964]
[1643493796118,6.25,96.039,95.94,6.0]
[1643493796521,6.25,96.039,95.941,10.31731794]
[1643493796720,6.25,96.039,95.942,4.31731794]
[1643493797121,9.20669142,96.039,95.952,6.0]
[1643493797323,9.20669142,96.039,95.931,48.2199]
[1643493797626,23.2869,96.038,95.941,6.0]
[1643493797821,0.25,96.037,95.941,6.0]
[1643493798022,0.25,96.037,95.942,6.0]
[1643493798422,39.28535276,96.035,95.942,6.0]
[1643493798622,39.28535276,96.035,95.931,48.2199]
[1643493798623,39.28535276,96.035,95.941,6.0]
[1643493798821,0.25,96.034,95.941,6.0]
[1643493799421,2.95669142,96.033,95.941,6.0]
[1643493799822,0.25,96.032,95.941,6.0]
[1643493800024,0.25,96.032,95.931,48.2199]
[1643493800225,2.95669142,96.031,95.931,48.2199]
[1643493800423,2.95669142,96.031,95.932,4.32202169]
[1643493800623,0.25,96.03,95.932,4.32202169]
[1643493801022,15.892,96.03,95.932,4.32202169]
[1643493801223,15.892,96.03,95.931,48.2199]
[1643493801624,62.51,96.029,95.931,48.2199]
[1643493801824,0.25,96.028,95.9,15.04]
[1643493802026,3.20669142,96.028,95.91,6.0]
[1643493802224,15.645,96.0,95.91,6.0]
[1643493802425,43.43313271,95.999,95.911,4.32043707]
[1643493802625,46.63982413,95.999,95.91,6.0]
[1643493802880,2.95669142,95.998,95.91,6.0]
[1643493803026,2.95669142,95.998,95.901,48.0425]
[1643493803225,24.3573,95.997,95.901,48.0425]
[1643493803628,2.95669142,95.996,95.901,48.0425]
[1643493803829,0.25,95.995,95.901,48.0425]
[1643493804129,34.10560248,95.979,95.901,48.0425]
[1643493804329,0.25,95.978,95.901,48.0425]
[1643493804729,3.20669142,95.978,95.901,48.0425]
[1643493805931,6.0,95.968,95.901,48.0425]
[1643493806434,0.25,95.967,95.877,0.1]
[1643493806633,27.84519142,95.967,95.874,4.39534675]
[1643493806832,2.95669142,95.966,95.874,0.1]
[1643493807065,2.95669142,95.966,95.874,4.39539984]
[1643493807251,0.25,95.965,95.874,0.1]
[1643493807536,62.51,95.959,95.862,0.1]
[1643493807732,15.04,95.96,95.806,23.0848]
[1643493807733,15.04,95.96,95.836,48.3776]
[1643493807944,0.25,95.958,95.842,2.1690865]
[1643493808135,0.25,95.958,95.837,0.1]
[1643493808136,0.25,95.958,95.858,2.1690865]
[1643493808336,0.25,95.958,95.859,1.11965272]
[1643493808548,0.25,95.958,95.847,0.1]
[1643493808749,62.76,95.958,95.837,0.1]
[1643493808955,0.25,95.958,95.837,0.1]
[1643493809151,0.25,95.958,95.846,6.0]
[1643493809358,0.25,95.958,95.846,9.42998581]
[1643493810558,62.51,95.948,95.848,6.0]
[1643493810755,0.25,95.947,95.847,0.1]
[1643493810960,0.25,95.947,95.846,6.0]
[1643493810961,3.20669142,95.947,95.837,0.1]
[1643493811362,0.25,95.947,95.846,6.0]
[1643493811761,2.95669142,95.946,95.846,6.0]
[1643493811967,15.656,95.94,95.831,6.0]
[1643493812168,0.25,95.945,95.835,2.1690865]
[1643493812378,0.25,95.947,95.84,15.04]
[1643493812584,0.25,95.947,95.85,21.04]
[1643493812785,0.25,95.947,95.851,25.0055]
[1643493812984,0.25,95.947,95.861,6.0]
[1643493813386,24.561,95.956,95.853,0.14123244]
[1643493813387,2.95669142,95.946,95.853,0.14123244]
[1643493813589,2.95669142,95.946,95.853,0.04123244]
[1643493813783,0.25,95.945,95.853,0.04123244]
[1643493814187,62.51,95.939,95.853,0.04123244]
[1643493814385,15.66,95.92,95.853,0.04123244]
[1643493814608,47.664,95.919,95.853,0.04123244]
[1643493814786,47.914,95.919,95.853,0.04123244]
[1643493814989,50.87069142,95.919,95.853,0.04123244]
[1643493815187,43.84282597,95.918,95.853,0.04123244]
[1643493815387,40.88613455,95.918,95.853,0.04123244]
[1643493816018,15.661,95.91,95.853,0.04123244]
[1643493816591,0.25,95.909,95.853,0.04123244]
[1643493816890,43.4721553,95.899,95.853,0.04123244]
[1643493817292,0.25,95.898,95.853,0.04123244]
[1643493820296,2.95669142,95.897,95.853,0.04123244]
[1643493820494,6.0,95.889,95.853,0.04123244]
[1643493820900,0.25,95.888,95.853,0.04123244]
[1643493822699,2.95669142,95.887,95.853,0.04123244]
[1643493822905,0.25,95.886,95.853,0.04123244]
[1643493823300,2.95669142,95.885,95.853,0.04123244]
[1643493823535,36.06756747,95.884,95.853,0.04123244]
[1643493823701,36.31756747,95.884,95.853,0.04123244]
[1643493823902,27.91389142,95.883,95.853,0.04123244]
[1643493824103,15.666,95.88,95.853,0.04123244]
[1643493824337,0.25,95.879,95.853,0.04123244]
[1643493824705,3.20669142,95.879,95.853,0.04123244]
[1643493824905,2.95669142,95.878,95.853,0.04123244]
[1643493825309,0.25,95.877,95.853,0.04123244]
[1643493825706,2.95669142,95.876,95.853,0.04123244]
[1643493825913,0.25,95.875,95.853,0.04123244]
[1643493826313,2.95669142,95.874,95.853,0.04123244]
[1643493826512,6.0,95.866,95.853,0.04123244]
[1643493826914,48.4376511,95.865,95.853,0.04123244]
[1643493827313,2.95669142,95.864,95.853,0.04123244]
[1643493827513,6.06439994,95.86,95.853,0.04123244]
[1643493828013,0.25,95.859,95.857,0.0038884]
[1643493831635,2.95669142,95.858,95.857,0.0038884]
[1643493831835,3.20669142,95.858,95.857,0.0038884]
[1643493835644,6.06439994,95.86,95.857,0.0038884]
[1643493836842,0.25,95.859,95.857,0.0038884]
[1643493838048,64.95669142,95.858,95.857,0.0038884]
[1643493838246,3.20669142,95.858,95.857,0.0038884]
[1643493838446,2.95669142,95.858,95.857,0.0038884]
[1643493838646,6.06439994,95.86,95.857,0.0038884]
[1643493839746,0.25,95.859,95.857,0.0038884]
[1643493844055,6.06439994,95.86,95.857,0.0038884]
[1643493845254,0.25,95.859,95.857,0.0038884]
[1643493846153,6.06439994,95.86,95.857,0.0038884]
[1643493847455,2.95669142,95.859,95.857,0.0038884]
[1643493847652,3.20669142,95.859,95.857,0.0038884]
[1643493847857,0.25,95.859,95.857,0.0038884]
[1643493849056,6.06439994,95.86,95.857,0.0038884]
[1643493850059,6.06439994,95.86,95.857,0.1677768]
[1643493850255,0.25,95.859,95.857,0.1677768]
[1643493851760,6.06439994,95.86,95.857,0.1677768]
[1643493852964,6.06439994,95.86,95.857,0.0077768]
[1643493853161,0.25,95.859,95.857,0.0077768]
[1643493853363,3.20669142,95.859,95.857,0.0077768]
[1643493853567,2.95669142,95.858,95.857,0.0077768]
[1643493853764,3.20669142,95.858,95.857,0.0077768]
[1643493854162,0.25,95.858,95.857,0.0077768]
[1643493854963,3.20669142,95.858,95.857,0.0077768]
[1643493859770,65.71669142,95.858,95.857,0.0077768]
[1643493860577,3.20669142,95.858,95.857,0.0077768]
[1643493860771,65.71669142,95.858,95.857,0.0077768]
[1643493860973,3.20669142,95.858,95.857,0.0077768]
[1643493863974,65.71669142,95.858,95.857,0.0077768]
[1643493867301,62.0,95.857,95.78,29.09184086]
[1643493867531,166.71,95.839,95.78,0.3355536]
[1643493867699,62.51,95.829,95.78,0.3355536]
[1643493867899,62.51,95.828,95.773,0.24005376]
[1643493868100,62.76,95.828,95.773,0.48010752]
[1643493868398,62.51,95.825,95.768,0.34325864]
[1643493868616,62.51,95.819,95.721,2.90215274]
[1643493868899,62.51,95.809,95.71,2.90215274]
[1643493869095,62.51,95.809,95.7,2.90215274]
[1643493869299,36.91082506,95.809,95.701,2.90215274]
[1643493869497,39.86751648,95.809,95.701,2.90215274]
[1643493869707,39.86751648,95.809,95.7,3.95538176]
[1643493870095,39.86751648,95.809,95.71,6.0]
[1643493870498,39.86751648,95.809,95.705,6.0]
[1643493870696,15.68,95.8,95.705,6.0]
[1643493870896,36.91082506,95.809,95.711,2.1690865]
[1643493871099,36.91082506,95.809,95.721,6.0]
[1643493871297,6.0,95.799,95.722,22.7681]
[1643493871597,6.0,95.799,95.722,28.7681]
[1643493872097,6.0,95.799,95.722,22.7681]
[1643493872303,0.25,95.798,95.722,22.7681]
[1643493872705,0.25,95.798,95.733,9.8566584]
[1643493874006,0.25,95.798,95.722,22.7681]
[1643493875013,0.25,95.798,95.687,27.16945274]
[1643493875014,2.95669142,95.797,95.687,27.16945274]
[1643493875214,15.36436387,95.79,95.681,0.1]
[1643493875408,62.51,95.789,95.669,0.1]
[1643493875609,76.62948474,95.789,95.669,0.1]
[1643493875808,0.31403377,95.752,95.667,0.2199835]
[1643493876308,2.95669142,95.751,95.667,33.67019966]
[1643493876507,15.04,95.75,95.668,0.1]
[1643493876710,15.29,95.75,95.668,0.1]
[1643493876912,62.51,95.749,95.668,0.1]
[1643493877108,65.46669142,95.749,95.667,0.2199835]
[1643493877408,14.11948474,95.748,95.667,0.2199835]
[1643493877808,15.04,95.75,95.667,0.2199835]
[1643493878254,17.99669142,95.75,95.667,0.2199835]
[1643493878407,17.99669142,95.75,95.667,0.1199835]
[1643493878809,73.42279332,95.749,95.667,0.1199835]
[1643493879107,99.42082506,95.738,95.667,0.1199835]
[1643493879313,15.04,95.73,95.667,0.1199835]
[1643493879707,0.25,95.729,95.667,0.1199835]
[1643493879910,24.9711,95.729,95.667,0.1199835]
[1643493880112,2.95669142,95.728,95.667,0.1199835]
[1643493880355,0.25,95.727,95.667,0.1199835]
[1643493880709,2.95669142,95.726,95.667,0.1199835]
[1643493880911,2.95669142,95.726,95.667,0.239967]
[1643493881111,0.25,95.725,95.667,0.239967]
[1643493881611,2.95669142,95.724,95.667,0.239967]
[1643493881811,17.91389773,95.723,95.667,0.239967]
[1643493882012,0.25,95.723,95.667,0.239967]
[1643493882210,2.95669142,95.722,95.667,0.239967]
[1643493882615,0.25,95.721,95.667,0.239967]
[1643493883016,2.95669142,95.72,95.667,0.239967]
[1643493883414,0.25,95.719,95.667,0.239967]
[1643493883812,2.95669142,95.718,95.667,0.239967]
[1643493884014,0.25,95.719,95.667,0.239967]
[1643493884212,2.95669142,95.735,95.667,0.239967]
[1643493884413,15.6442,95.772,95.667,0.239967]
[1643493884613,15.6957,95.775,95.667,0.239967]
[1643493885013,40.71780411,95.787,95.667,0.239967]
[1643493885217,56.69120411,95.787,95.667,0.239967]
[1643493885613,104.2,95.786,95.676,20.79049937]
[1643493885820,0.25,95.785,95.676,20.79049937]
[1643493886016,6.0,95.777,95.676,20.79049937]
[1643493886315,0.25,95.776,95.676,20.79049937]
[1643493886816,0.25,95.776,95.676,19.29049937]
[1643493887016,3.20669142,95.776,95.676,19.29049937]
[1643493887515,15.35691868,95.765,95.686,6.0]
[1643493887929,0.25,95.764,95.686,6.0]
[1643493889016,0.25,95.764,95.676,19.29049937]
[1643493889218,30.727,95.76,95.667,0.239967]
[1643493889419,62.51,95.759,95.667,0.239967]
[1643493889616,65.71669142,95.759,95.667,0.239967]
[1643493890016,87.3219,95.758,95.667,0.239967]
[1643493890220,24.8119,95.758,95.667,0.239967]
[1643493890418,0.25,95.757,95.667,0.239967]
[1643493890618,36.59363321,95.747,95.667,0.239967]
[1643493890818,0.25,95.746,95.667,0.239967]
[1643493891319,62.51,95.738,95.667,0.239967]
[1643493891517,62.51,95.729,95.667,0.239967]
[1643493891719,15.04,95.73,95.667,0.239967]
[1643493891918,0.25,95.728,95.667,0.239967]
[1643493892522,2.95669142,95.727,95.667,0.239967]
[1643493892920,0.25,95.726,95.667,0.239967]
[1643493893322,2.95669142,95.725,95.667,0.239967]
[1643493893722,0.25,95.724,95.667,0.239967]
[1643493894723,2.95669142,95.723,95.667,0.239967]
[1643493895278,0.25,95.722,95.667,0.239967]
[1643493895622,2.95669142,95.721,95.667,0.239967]
[1643493895822,0.25,95.72,95.667,0.239967]
[1643493896122,62.51,95.719,95.667,0.239967]
[1643493896348,0.25,95.718,95.667,0.239967]
[1643493896523,3.20669142,95.718,95.667,0.239967]
[1643493896723,99.10363321,95.709,95.667,0.239967]
[1643493896927,15.04,95.7,95.667,0.239967]
[1643493897124,6.0,95.699,95.667,0.239967]
[1643493897330,6.25,95.699,95.667,0.239967]
[1643493897526,9.20669142,95.699,95.667,0.239967]
[1643493897726,124.51,95.689,95.604,2.99171668]
[1643493897931,0.30940792,95.675,95.604,0.08956394]
[1643493899525,0.25,95.678,95.604,0.08956394]
[1643493900331,18.02434602,95.686,95.604,0.08956394]
[1643493901127,18.02434602,95.686,95.605,6.0]
[1643493901526,18.02434602,95.686,95.614,6.0]
[1643493901726,18.02434602,95.686,95.604,17.88410714]
[1643493902532,6.0,95.676,95.604,17.88410714]
[1643493902730,6.0,95.676,95.614,6.0]
[1643493902933,18.02434602,95.686,95.614,6.0]
[1643493903330,0.25,95.685,95.614,6.0]
[1643493904131,0.25,95.685,95.604,17.88410714]
[1643493904533,6.0,95.676,95.604,17.88410714]
[1643493904733,25.78459142,95.685,95.604,17.88410714]
[1643493904938,0.25,95.675,95.604,17.88410714]
[1643493905136,22.8279,95.685,95.604,17.88410714]
[1643493905337,22.8279,95.685,95.614,6.0]
[1643493905540,2.95669142,95.684,95.614,6.0]
[1643493905942,0.25,95.683,95.608,2.90215274]
[1643493906161,6.0,95.674,95.604,0.08956394]
[1643493906363,0.25,95.673,95.604,0.08956394]
[1643493907059,0.25,95.673,95.606,6.0]
[1643493907460,0.25,95.679,95.606,6.0]
[1643493910065,15.04,95.68,95.606,6.0]
[1643493910864,17.99669142,95.7,95.607,0.25]
[1643493911065,15.04,95.7,95.607,0.25]
[1643493911463,15.04,95.7,95.606,6.0]
[1643493911665,0.25,95.685,95.612,20.48264891]
[1643493913075,6.0,95.676,95.612,20.48264891]
[1643493913269,0.25,95.675,95.612,20.48264891]
[1643493914569,0.25,95.685,95.612,20.48264891]
[1643493914767,23.1061,95.698,95.612,20.48264891]
[1643493916174,0.25,95.685,95.612,20.48264891]
[1643493916878,23.1061,95.698,95.612,20.48264891]
[1643493917876,23.1061,95.698,95.611,6.0]
[1643493917877,85.6161,95.698,95.604,2.99171668]
[1643493918087,6.0,95.676,95.605,2.90215274]
[1643493918280,62.51,95.666,95.573,0.49415792]
[1643493918477,0.31187695,95.619,95.519,6.77483698]
[1643493918679,0.32352673,95.644,95.518,323.47304307]
[1643493918680,15.04,95.61,95.518,323.47304307]
[1643493918880,5.9790456,95.609,95.519,36.56739007]
[1643493919130,5.9790456,95.609,95.52,104.2]
[1643493919280,5.9790456,95.609,95.519,36.56739007]
[1643493920885,15.04,95.61,95.52,104.2]
[1643493921081,15.04,95.61,95.52,104.45]
[1643493921581,15.04,95.61,95.53,6.0]
[1643493921983,19.99891392,95.609,95.529,6.0]
[1643493922783,0.25,95.608,95.529,6.0]
[1643493923487,0.25,95.608,95.519,36.56739007]
[1643493923688,6.0,95.599,95.519,36.56739007]
[1643493923885,0.25,95.598,95.519,36.56739007]
[1643493924922,2.95669142,95.597,95.497,0.1]
[1643493925123,2.95669142,95.597,95.492,0.1]
[1643493925321,6.0,95.587,95.482,0.1]
[1643493925918,6.71116912,95.586,95.482,42.90715863]
[1643493926124,6.71116912,95.586,95.483,0.1]
[1643493926418,2.95669142,95.585,95.483,0.1]
[1643493926645,2.95669142,95.585,95.492,6.0]
[1643493926819,0.25,95.584,95.492,6.0]
[1643493927419,27.50209142,95.585,95.492,6.0]
[1643493928026,2.95669142,95.584,95.483,0.1]
[1643493928220,15.04,95.58,95.461,0.1]
[1643493928422,62.51,95.579,95.458,0.1]
[1643493928624,65.46669142,95.579,95.458,0.1]
[1643493928820,0.25,95.578,95.452,0.1]
[1643493929019,3.20669142,95.578,95.453,39.49717961]
[1643493929223,3.20669142,95.578,95.454,104.3]
[1643493929425,2.95669142,95.577,95.455,0.1]
[1643493929822,0.25,95.576,95.455,0.1]
[1643493930021,6.0,95.567,95.455,0.1]
[1643493930221,18.46213542,95.566,95.455,0.1]
[1643493930421,21.66882684,95.566,95.464,6.0]
[1643493930622,6.0,95.556,95.463,6.0]
[1643493930824,0.25,95.555,95.463,6.0]
[1643493931021,0.25,95.555,95.464,6.0]
[1643493931225,0.25,95.555,95.464,6.1]
[1643493931422,0.25,95.555,95.464,6.0]
[1643493931822,0.25,95.555,95.463,6.0]
[1643493932026,24.9212,95.564,95.463,6.0]
[1643493933130,27.87789142,95.564,95.464,6.0]
[1643493933326,27.87789142,95.564,95.464,6.1]
[1643493933527,27.87789142,95.564,95.455,0.1]
[1643493933735,0.30611201,95.538,95.455,0.1]
[1643493933928,62.51,95.563,95.454,0.1]
[1643493934161,2.95669142,95.538,95.454,0.1]
[1643493934328,5.5412562,95.537,95.454,0.1]
[1643493934729,2.95669142,95.536,95.454,0.1]
[1643493934929,2.95669142,95.536,95.463,6.0]